bitfinex/quotes_BTCUSD_20250403
["timestamp","ask_amount","ask_price","bid_price","bid_amount"]
[1743700513649,0.244339,81854.0,81851.0,0.36724797]
[1743700513873,0.244316,81861.0,81851.0,0.12290297]
[1743700514074,0.012212,81882.0,81872.0,0.012214]
[1743700514276,0.244277,81874.0,81873.0,0.12290297]
[1743700515050,0.25649,81874.0,81873.0,0.12290297]
[1743700515490,0.25649,81874.0,81868.0,0.05274155]
[1743700515491,0.012214,81869.0,81868.0,0.00764155]
[1743700515694,0.256466,81869.0,81868.0,0.00764155]
[1743700516099,0.596466,81869.0,81868.0,0.00764155]
[1743700516280,0.980335,81869.0,81868.0,0.00764155]
[1743700516481,0.256544,81857.0,81856.0,0.00764155]
[1743700517791,0.256563,81851.0,81850.0,0.00764155]
[1743700518822,0.26593535,81851.0,81850.0,0.00764155]
[1743700519031,0.256575,81847.0,81846.0,4e-05]
[1743700520405,0.596575,81847.0,81846.0,0.00014723]
[1743700520614,0.989008,81847.0,81846.0,0.00014723]
[1743700520817,0.950601,81847.0,81846.0,0.00014723]
[1743700521041,0.872345,81847.0,81846.0,0.00014723]
[1743700521812,1.095341,81847.0,81846.0,0.00014723]
[1743700522292,0.868991,81847.0,81846.0,0.00014723]
[1743700522468,0.596575,81847.0,81846.0,0.00014723]
[1743700523386,0.60846634,81847.0,81846.0,0.00014723]
[1743700527848,0.596575,81847.0,81846.0,0.00014723]
[1743700529878,0.60830363,81847.0,81846.0,0.00014723]
[1743700530079,1.52000163,81847.0,81846.0,2.3e-07]
[1743700530196,1.52000163,81847.0,81841.0,0.004]
[1743700530197,0.256591,81842.0,81841.0,2.3e-07]
[1743700530495,0.596591,81842.0,81841.0,2.3e-07]
[1743700536530,0.71949397,81842.0,81841.0,2.3e-07]
[1743700536653,0.84239165,81842.0,81841.0,2.3e-07]
[1743700540228,0.84220681,81842.0,81841.0,2.3e-07]
[1743700540785,0.71930913,81842.0,81841.0,2.3e-07]
[1743700547404,0.59640616,81842.0,81841.0,2.3e-07]
[1743700549397,0.244373,81842.0,81841.0,2.3e-07]
[1743700549595,0.256591,81842.0,81841.0,0.04930023]
[1743700549791,0.596591,81842.0,81841.0,0.04930023]
[1743700550187,0.244373,81842.0,81841.0,0.09830023]
[1743700550393,0.256591,81842.0,81841.0,0.09830023]
[1743700550797,0.596591,81842.0,81841.0,0.09830023]
[1743700551721,0.30562674,81842.0,81841.0,0.09830023]
[1743700551923,0.56221774,81842.0,81841.0,0.09830023]
[1743700552705,0.012216,81856.0,81843.0,0.012218]
[1743700552922,0.012217,81847.0,81844.0,0.12290297]
[1743700553165,0.244364,81845.0,81844.0,0.12290297]
[1743700553335,0.256582,81845.0,81844.0,0.12290297]
[1743700553945,0.256582,81845.0,81844.0,0.16091796]
[1743700554385,0.256582,81845.0,81844.0,0.12290297]
[1743700555120,0.256591,81842.0,81841.0,0.09830023]
[1743700558186,0.244373,81842.0,81841.0,0.09830023]
[1743700559829,0.012217,81850.0,81841.0,0.2212032]
[1743700560042,0.012216,81858.0,81844.0,0.012218]
[1743700560249,0.012216,81859.0,81855.0,0.0495]
[1743700560456,0.244331,81856.0,81855.0,0.17240297]
[1743700560659,0.256547,81856.0,81855.0,0.0495]
[1743700560865,0.256557,81853.0,81852.0,0.14388]
[1743700561688,0.244331,81856.0,81850.0,0.012217]
[1743700561900,0.244338,81854.0,81851.0,0.12290297]
[1743700562103,0.244337,81855.0,81851.0,0.36724797]
[1743700562310,0.244339,81854.0,81851.0,0.12290297]
[1743700562728,0.012215,81865.0,81855.0,0.012216]
[1743700562956,0.012215,81860.0,81856.0,0.12290297]
[1743700563172,0.012216,81859.0,81856.0,0.12290297]
[1743700563364,0.244325,81858.0,81856.0,0.12290297]
[1743700563988,0.244328,81859.0,81856.0,0.12290297]
[1743700564222,0.0004611,81863.0,81862.0,0.256528]
[1743700564428,0.0004611,81863.0,81862.0,0.52327097]
[1743700565302,0.0004611,81863.0,81862.0,0.51105597]
[1743700566492,0.0004611,81863.0,81862.0,0.52327097]
[1743700567094,0.0004611,81863.0,81861.0,0.0982]
[1743700567095,0.2569861,81863.0,81861.0,0.0982]
[1743700567300,0.2569861,81863.0,81862.0,0.14384]
[1743700567929,0.2569861,81863.0,81855.0,0.0484]
[1743700567930,0.256547,81856.0,81855.0,0.0484]
[1743700568133,0.012216,81856.0,81851.0,0.14384]
[1743700568383,0.244342,81853.0,81851.0,0.14384]
[1743700568810,0.256544,81858.0,81851.0,0.244343]
[1743700569018,0.012216,81857.0,81849.0,0.14384]
[1743700569379,0.244346,81851.0,81850.0,0.12290297]
[1743700569881,0.244333,81856.0,81852.0,0.244337]
[1743700570080,0.244334,81856.0,81853.0,0.12290297]
[1743700570383,0.244337,81854.0,81853.0,0.12290297]
[1743700570727,0.244331,81858.0,81853.0,0.12290297]
[1743700570928,0.244328,81857.0,81853.0,0.12290297]
[1743700571154,0.244332,81856.0,81853.0,0.36724197]
[1743700571329,0.244328,81857.0,81853.0,0.12290297]
[1743700571535,0.244335,81855.0,81853.0,0.12290297]
[1743700571739,0.244337,81854.0,81853.0,0.12290297]
[1743700572323,0.012215,81861.0,81854.0,0.244335]
[1743700572575,0.012215,81861.0,81855.0,0.12290297]
[1743700572780,0.244331,81856.0,81855.0,0.12290297]
[1743700572980,0.256547,81856.0,81855.0,0.12290297]
[1743700573539,0.244349,81850.0,81849.0,0.14384]
[1743700573763,0.244346,81852.0,81849.0,0.26674297]
[1743700573979,0.244348,81851.0,81850.0,0.12290297]
[1743700574571,0.244338,81854.0,81850.0,0.12290297]
[1743700574960,0.244338,81854.0,81850.0,0.36724597]
[1743700575137,0.244338,81854.0,81850.0,0.12290297]
[1743700575340,0.24434,81853.0,81851.0,0.244345]
[1743700575540,0.244338,81854.0,81851.0,0.244345]
[1743700575749,0.24434,81855.0,81852.0,0.244342]
[1743700575922,0.244341,81853.0,81850.0,0.13511997]
[1743700576129,0.244294,81869.0,81857.0,0.012216]
[1743700576308,0.244298,81867.0,81862.0,0.244313]
[1743700576685,0.256504,81870.0,81862.0,0.37943097]
[1743700576892,0.24425,81884.0,81862.0,0.42813097]
[1743700577109,0.012212,81886.0,81862.0,0.47323097]
[1743700577110,0.244259,81881.0,81862.0,0.47323097]
[1743700577330,0.00924758,81892.0,81862.0,0.48777182]
[1743700577555,0.012211,81893.0,81862.0,0.48777182]
[1743700577788,0.244228,81891.0,81862.0,0.48777182]
[1743700577999,0.244203,81899.0,81893.0,0.012211]
[1743700578211,0.256407,81901.0,81893.0,0.13511397]
[1743700578411,0.244192,81903.0,81899.0,0.2442]
[1743700578632,0.256403,81902.0,81900.0,0.12290297]
[1743700578863,0.244212,81896.0,81890.0,0.012211]
[1743700579081,0.244212,81896.0,81893.0,0.36712097]
[1743700579287,0.012211,81889.0,81886.0,0.1438]
[1743700579505,0.25645,81887.0,81886.0,0.1438]
[1743700579707,0.01221,81896.0,81889.0,0.244232]
[1743700579900,0.01221,81894.0,81889.0,0.244232]
[1743700580106,0.256427,81895.0,81889.0,0.256443]
[1743700580379,0.01221,81894.0,81888.0,0.012211]
[1743700580586,0.244224,81893.0,81888.0,0.256446]
[1743700580824,0.244239,81887.0,81886.0,0.26670297]
[1743700581079,0.012211,81891.0,81886.0,0.26670297]
[1743700581080,0.24423,81890.0,81886.0,0.26670297]
[1743700581278,0.012211,81892.0,81887.0,0.244238]
[1743700581481,0.244229,81891.0,81888.0,0.244235]
[1743700581698,0.256429,81894.0,81888.0,0.244235]
[1743700581901,0.244201,81900.0,81894.0,0.01221]
[1743700582119,0.012209,81901.0,81894.0,0.13511297]
[1743700582120,0.244206,81898.0,81894.0,0.13511297]
[1743700582353,0.244206,81898.0,81894.0,0.37932997]
[1743700582563,0.0001383,81904.0,81903.0,0.2564]
[1743700582769,0.0001383,81904.0,81903.0,0.52306297]
[1743700583383,0.0001383,81904.0,81903.0,0.53760382]
[1743700583790,0.0001383,81904.0,81903.0,0.87760382]
[1743700585703,0.0001383,81904.0,81903.0,0.28120382]
[1743700586003,0.0001383,81904.0,81903.0,0.27887197]
[1743700586987,0.0001383,81904.0,81903.0,0.29341282]
[1743700587410,0.0001383,81904.0,81903.0,0.27887197]
[1743700587618,0.0001383,81904.0,81903.0,0.26666297]
[1743700587818,0.0123473,81904.0,81903.0,0.12290297]
[1743700588025,0.0123473,81904.0,81892.0,0.256432]
[1743700588026,0.0001383,81904.0,81894.0,0.15593]
[1743700588224,0.2443273,81904.0,81899.0,0.01221]
[1743700588426,0.0001383,81904.0,81903.0,0.2564]
[1743700588587,0.0001383,81904.0,81903.0,0.43954382]
[1743700589733,0.0001383,81904.0,81903.0,0.77954382]
[1743700590348,0.0001383,81904.0,81903.0,0.43954382]
[1743700590545,0.0001383,81904.0,81903.0,0.42500297]
[1743700591503,0.0001383,81904.0,81903.0,0.13511197]
[1743700591694,0.0001383,81904.0,81903.0,0.52298297]
[1743700593653,0.0001383,81904.0,81903.0,0.71930297]
[1743700593842,0.0001383,81904.0,81903.0,0.52298297]
[1743700594287,0.0001383,81904.0,81903.0,0.37930297]
[1743700594497,0.0001383,81904.0,81903.0,0.52298297]
[1743700595951,0.0001383,81904.0,81903.0,0.52294297]
[1743700596574,0.0001383,81904.0,81903.0,0.53748382]
[1743700597914,0.0001383,81904.0,81903.0,0.92618382]
[1743700598599,3e-07,81904.0,81903.0,1.00498382]
[1743700599920,3e-07,81904.0,81903.0,0.99998382]
[1743700603301,3e-07,81904.0,81903.0,1.00498382]
[1743700604757,0.25629,81939.0,81933.0,0.2441]
[1743700604758,0.244092,81937.0,81933.0,0.2441]
[1743700604959,0.0001385,81937.0,81931.0,0.012205]
[1743700605161,0.0001385,81937.0,81936.0,0.244092]
[1743700606537,0.0001385,81937.0,81935.0,0.256299]
[1743700606739,0.0001385,81937.0,81935.0,0.244095]
[1743700606913,0.2442285,81937.0,81931.0,0.37921297]
[1743700607119,0.2442285,81937.0,81931.0,0.36700997]
[1743700607317,0.244107,81931.0,81925.0,0.244123]
[1743700607553,0.244107,81931.0,81927.0,0.244119]
[1743700607757,0.244107,81931.0,81926.0,0.244122]
[1743700607962,0.0462,81932.0,81927.0,0.012205]
[1743700608115,0.0001385,81937.0,81936.0,0.256296]
[1743700608522,0.0001385,81937.0,81936.0,0.37919897]
[1743700608962,0.0001385,81937.0,81936.0,0.44063982]
[1743700610365,0.0001385,81937.0,81936.0,0.80563982]
[1743700613899,0.0001385,81937.0,81936.0,0.78063982]
[1743700614503,0.0001385,81937.0,81936.0,0.87729982]
[1743700614872,0.2442275,81937.0,81936.0,0.26646297]
[1743700615087,0.0001385,81937.0,81936.0,0.26646297]
[1743700615288,0.0001385,81937.0,81936.0,0.51055497]
[1743700615406,0.0001385,81937.0,81929.0,0.012205]
[1743700615407,0.012204,81935.0,81922.0,0.012206]
[1743700615602,0.244117,81928.0,81925.0,0.244125]
[1743700615827,0.244119,81927.0,81926.0,0.12290297]
[1743700616111,0.244117,81928.0,81926.0,0.12290297]
[1743700616512,0.244119,81927.0,81926.0,0.12290297]
[1743700616709,0.24414,81920.0,81898.0,0.0457]
[1743700616936,0.244167,81911.0,81908.0,0.14356]
[1743700617158,0.244167,81911.0,81910.0,0.23205941]
[1743700617368,0.24416,81914.0,81910.0,0.23205941]
[1743700617563,0.244143,81919.0,81911.0,0.12290297]
[1743700617564,0.244164,81912.0,81911.0,0.12290297]
[1743700617874,0.244182,81906.0,81901.0,0.12290297]
[1743700618079,0.012208,81913.0,81902.0,0.244193]
[1743700618318,0.244189,81904.0,81903.0,0.12290297]
[1743700618535,0.244182,81907.0,81903.0,0.12290297]
[1743700618683,0.244185,81905.0,81903.0,0.12290297]
[1743700618912,0.244185,81905.0,81901.0,0.244196]
[1743700619126,0.244182,81907.0,81894.0,0.0001383]
[1743700619127,0.012208,81907.0,81894.0,0.0001383]
[1743700619470,0.244209,81897.0,81895.0,0.12290297]
[1743700619602,0.256419,81897.0,81895.0,0.12290297]
[1743700619807,0.256425,81895.0,81894.0,0.0001383]
[1743700620013,0.244215,81895.0,81894.0,0.0001383]
[1743700620219,0.25340086,81908.0,81894.0,0.12304127]
[1743700620442,0.244201,81900.0,81896.0,0.244212]
[1743700620656,0.244201,81900.0,81895.0,0.13511297]
[1743700620657,0.244198,81901.0,81895.0,0.13511297]
[1743700620929,0.244203,81899.0,81895.0,0.37932697]
[1743700621127,0.244209,81897.0,81895.0,0.12290297]
[1743700621288,0.256425,81895.0,81894.0,0.0001383]
[1743700621908,0.244215,81895.0,81894.0,0.0001383]
[1743700622088,0.012209,81906.0,81895.0,0.01221]
[1743700622285,0.01221,81895.0,81894.0,0.0001383]
[1743700623773,0.244213,81896.0,81894.0,0.0001383]
[1743700624191,0.01221,81895.0,81894.0,0.0001383]
[1743700625751,0.35221,81895.0,81894.0,0.0001383]
[1743700626166,1.039022,81895.0,81894.0,0.0001383]
[1743700626401,1.25902497,81895.0,81894.0,0.0001383]
[1743700629073,1.25902497,81895.0,81894.0,3e-07]
[1743700629291,0.256497,81872.0,81871.0,0.004]
[1743700629899,0.244276,81875.0,81871.0,0.004]
[1743700630101,0.244282,81873.0,81871.0,0.004]
[1743700630315,0.34,81877.0,81873.0,0.012214]
[1743700630522,0.012212,81883.0,81876.0,0.244269]
[1743700630754,0.244267,81878.0,81874.0,0.244275]
[1743700630958,0.244273,81876.0,81872.0,0.36718597]
[1743700631158,0.244273,81876.0,81873.0,0.24428]
[1743700631365,0.244265,81878.0,81873.0,0.24428]
[1743700631366,0.24427,81877.0,81873.0,0.24428]
[1743700631982,0.24427,81877.0,81874.0,0.244277]
[1743700632409,0.256491,81874.0,81871.0,0.004]
[1743700632606,0.24428,81873.0,81871.0,0.004]
[1743700632955,0.244278,81874.0,81871.0,0.004]
[1743700633164,0.244259,81880.0,81876.0,0.244271]
[1743700633380,0.244266,81878.0,81875.0,0.012213]
[1743700633794,0.012214,81872.0,81871.0,0.004]
[1743700634013,0.012214,81872.0,81871.0,1e-06]
[1743700634014,0.71939997,81872.0,81871.0,1e-06]
[1743700634413,0.71939997,81872.0,81832.0,0.14364]
[1743700634414,0.244373,81842.0,81832.0,0.14364]
[1743700634637,0.256591,81842.0,81832.0,0.14364]
[1743700635076,0.256591,81842.0,81833.0,0.10915644]
[1743700635978,0.256591,81842.0,81841.0,0.00050133]
[1743700636194,0.244373,81842.0,81841.0,0.00050133]
[1743700637785,0.256591,81842.0,81841.0,0.00050133]
[1743700640667,0.596591,81842.0,81841.0,0.00050133]
[1743700640822,0.60832571,81842.0,81841.0,0.00050133]
[1743700641005,0.93681771,81842.0,81841.0,0.00050133]
[1743700641199,0.93681771,81842.0,81841.0,3.3e-07]
[1743700641200,1.05972068,81842.0,81841.0,3.3e-07]
[1743700641613,0.73122868,81842.0,81841.0,3.3e-07]
[1743700641809,0.85412636,81842.0,81841.0,3.3e-07]
[1743700642222,0.68312783,81842.0,81841.0,3.3e-07]
[1743700651390,0.56022486,81842.0,81841.0,3.3e-07]
[1743700652629,0.68312783,81842.0,81841.0,3.3e-07]
[1743700654099,0.56022486,81842.0,81841.0,3.3e-07]
[1743700654612,0.53627215,81842.0,81841.0,3.3e-07]
[1743700654829,0.244373,81842.0,81841.0,3.3e-07]
[1743700655178,0.596591,81842.0,81841.0,3.3e-07]
[1743700655384,0.256591,81842.0,81841.0,3.3e-07]
[1743700655571,0.596591,81842.0,81841.0,3.3e-07]
[1743700659424,0.93359165,81842.0,81841.0,3.3e-07]
[1743700659626,0.81069397,81842.0,81841.0,3.3e-07]
[1743700660438,0.91569397,81842.0,81841.0,3.3e-07]
[1743700660848,0.94069397,81842.0,81841.0,3.3e-07]
[1743700661043,0.95523482,81842.0,81841.0,3.3e-07]
[1743700661241,1.0781325,81842.0,81841.0,3.3e-07]
[1743700664158,0.91069397,81842.0,81841.0,3.3e-07]
[1743700664973,0.71949397,81842.0,81841.0,3.3e-07]
[1743700666863,0.596591,81842.0,81841.0,3.3e-07]
[1743700669020,0.584373,81842.0,81841.0,3.3e-07]
[1743700669221,0.596591,81842.0,81841.0,3.3e-07]
[1743700670543,0.34,81842.0,81841.0,3.3e-07]
[1743700670745,0.584373,81842.0,81841.0,3.3e-07]
[1743700670956,0.244373,81842.0,81841.0,3.3e-07]
[1743700671181,0.256591,81842.0,81841.0,3.3e-07]
[1743700673694,0.596591,81842.0,81841.0,3.3e-07]
[1743700674936,0.71948868,81842.0,81841.0,3.3e-07]
[1743700675065,0.596591,81842.0,81841.0,3.3e-07]
[1743700675731,0.71949397,81842.0,81841.0,3.3e-07]
[1743700678926,0.596591,81842.0,81841.0,3.3e-07]
[1743700679499,0.71949397,81842.0,81841.0,3.3e-07]
[1743700679705,0.84239165,81842.0,81841.0,3.3e-07]
[1743700680507,0.94329165,81842.0,81841.0,3.3e-07]
[1743700680710,0.9578325,81842.0,81841.0,3.3e-07]
[1743700682335,0.82039397,81842.0,81841.0,3.3e-07]
[1743700682532,0.81539397,81842.0,81841.0,3.3e-07]
[1743700683548,0.81839397,81842.0,81841.0,3.3e-07]
[1743700683757,0.77319397,81842.0,81841.0,3.3e-07]
[1743700684124,0.72649397,81842.0,81841.0,3.3e-07]
[1743700684962,0.71949397,81842.0,81841.0,3.3e-07]
[1743700685161,0.72449397,81842.0,81841.0,3.3e-07]
[1743700685363,0.72549397,81842.0,81841.0,3.3e-07]
[1743700685571,0.74003482,81842.0,81841.0,3.3e-07]
[1743700685773,0.73503482,81842.0,81841.0,3.3e-07]
[1743700686175,0.74003482,81842.0,81841.0,3.3e-07]
[1743700686375,0.74203482,81842.0,81841.0,3.3e-07]
[1743700686699,0.74103482,81842.0,81841.0,3.3e-07]
[1743700687021,0.73603482,81842.0,81841.0,3.3e-07]
[1743700687215,0.73803482,81842.0,81841.0,3.3e-07]
[1743700687782,0.8540032,81842.0,81841.0,3.3e-07]
[1743700687977,0.86717397,81842.0,81841.0,3.3e-07]
[1743700689601,3.940897,81841.0,81811.0,0.004]
[1743700689757,0.256685,81812.0,81811.0,0.00413798]
[1743700691230,0.00896064,81812.0,81811.0,0.00413798]
[1743700691477,0.02118364,81812.0,81811.0,0.00413798]
[1743700691721,0.012223,81812.0,81811.0,0.00413798]
[1743700692207,0.256683,81813.0,81811.0,0.00413798]
[1743700692690,0.012223,81812.0,81811.0,0.00413798]
[1743700693120,0.02139834,81812.0,81811.0,0.00413798]
[1743700697175,0.36139834,81812.0,81811.0,0.00413798]
[1743700698445,0.60586034,81812.0,81811.0,0.00413798]
[1743700701347,0.26586034,81812.0,81811.0,0.00413798]
[1743700701643,0.26586034,81812.0,81811.0,0.0095223]
[1743700701846,0.26586034,81812.0,81811.0,0.00413798]
[1743700702473,0.26586034,81812.0,81811.0,0.0095223]
[1743700702695,0.01222,81829.0,81820.0,0.012221]
[1743700702897,0.01222,81829.0,81819.0,0.244439]
[1743700703095,0.244433,81822.0,81819.0,0.256661]
[1743700703305,0.244433,81822.0,81820.0,0.00538432]
[1743700703548,0.24443,81823.0,81821.0,0.244436]
[1743700703767,0.584427,81824.0,81821.0,0.244436]
[1743700704082,0.584427,81824.0,81822.0,0.00538432]
[1743700704996,0.596651,81823.0,81822.0,0.00538432]
[1743700705200,1.622758,81823.0,81822.0,0.00538432]
[1743700705457,0.012221,81825.0,81817.0,0.012222]
[1743700705662,0.34,81817.0,81814.0,0.244448]
[1743700705814,0.244443,81819.0,81814.0,0.244454]
[1743700706017,0.244443,81819.0,81815.0,0.0052873]
[1743700706221,0.244445,81818.0,81815.0,0.0052873]
[1743700706422,0.244443,81819.0,81815.0,0.0052873]
[1743700706621,0.001,82129.0,81821.0,0.012221]
[1743700706622,0.012219,81834.0,81821.0,0.012221]
[1743700706827,0.34,81829.0,81824.0,0.244426]
[1743700707026,0.34,81829.0,81825.0,0.244424]
[1743700707280,0.256685,81812.0,81804.0,0.244483]
[1743700707461,0.256685,81812.0,81802.0,0.244491]
[1743700707685,0.256685,81812.0,81797.0,0.061025]
[1743700707902,0.596685,81812.0,81797.0,0.0488]
[1743700708314,0.596685,81812.0,81794.0,0.00012]
[1743700708525,0.596685,81812.0,81798.0,0.00764409]
[1743700709921,0.596685,81812.0,81795.0,0.00764409]
[1743700710492,0.596685,81812.0,81795.0,0.25215709]
[1743700710691,0.596685,81812.0,81797.0,0.244507]
[1743700710864,0.596685,81812.0,81798.0,0.244504]
[1743700711493,0.596685,81812.0,81796.0,0.24451]
[1743700711716,0.596685,81812.0,81795.0,0.256736]
[1743700711920,0.596685,81812.0,81794.0,0.26067741]
[1743700711921,0.596685,81812.0,81794.0,0.24845741]
[1743700712121,0.596685,81812.0,81795.0,0.244513]
[1743700712318,0.596685,81812.0,81796.0,0.00764475]
[1743700713414,0.596685,81812.0,81796.0,0.25215275]
[1743700713737,0.596685,81812.0,81797.0,0.012225]
[1743700714076,0.596685,81812.0,81799.0,0.244501]
[1743700714275,0.596685,81812.0,81796.0,0.244508]
[1743700714460,0.596685,81812.0,81797.0,0.244507]
[1743700714818,0.596685,81812.0,81799.0,0.244501]
[1743700714978,0.596685,81812.0,81794.0,0.012345]
[1743700715184,0.596685,81812.0,81796.0,0.244509]
[1743700715772,0.596685,81812.0,81800.0,0.244498]
[1743700715977,0.584462,81812.0,81804.0,0.256709]
[1743700716181,0.01222,81828.0,81814.0,0.012222]
[1743700716410,0.244456,81815.0,81812.0,0.244462]
[1743700716611,0.244457,81814.0,81811.0,0.00413798]
[1743700716849,0.244462,81812.0,81811.0,0.00413798]
[1743700717067,0.256685,81812.0,81811.0,0.00413798]
[1743700721271,0.244461,81813.0,81811.0,0.00413798]
[1743700721481,0.012222,81816.0,81811.0,0.00413798]
[1743700721652,0.256673,81816.0,81812.0,0.00542545]
[1743700721989,0.244459,81813.0,81812.0,0.00542545]
[1743700722817,0.256681,81813.0,81812.0,0.00542545]
[1743700724574,0.012222,81817.0,81812.0,0.00542545]
[1743700724575,0.244442,81819.0,81816.0,0.24445]
[1743700724806,0.244458,81814.0,81812.0,0.00542545]
[1743700725019,0.244459,81813.0,81811.0,0.05333798]
[1743700725650,0.256679,81814.0,81811.0,0.29780198]
[1743700725935,0.256679,81814.0,81811.0,0.05333798]
[1743700726138,0.244461,81813.0,81811.0,0.05333798]
[1743700726780,0.256679,81814.0,81811.0,0.29780198]
[1743700726987,0.012221,81826.0,81817.0,0.012222]
[1743700727118,0.244442,81819.0,81816.0,0.256672]
[1743700727324,0.24445,81817.0,81813.0,0.303378]
[1743700727520,0.24445,81817.0,81814.0,0.244455]
[1743700727735,0.244447,81817.0,81813.0,0.0467]
[1743700727930,0.24445,81816.0,81813.0,0.291157]
[1743700728131,0.244447,81817.0,81814.0,0.244455]
[1743700728532,0.244462,81812.0,81811.0,0.00413798]
[1743700728751,0.012222,81815.0,81811.0,0.00413798]
[1743700729055,0.256685,81812.0,81811.0,0.00413798]
[1743700730606,0.256685,81812.0,81811.0,0.00948723]
[1743700730772,0.256685,81812.0,81811.0,0.00413798]
[1743700731472,0.244456,81815.0,81811.0,0.24859798]
[1743700731679,0.244457,81814.0,81811.0,0.00413798]
[1743700731873,0.24446,81813.0,81812.0,0.00534569]
[1743700732196,0.012222,81815.0,81812.0,0.00534569]
[1743700732399,0.02247401,81824.0,81812.0,0.00534569]
[1743700732679,0.244459,81814.0,81812.0,0.00534569]
[1743700733008,0.244459,81815.0,81812.0,0.24980669]
[1743700733711,0.244457,81814.0,81812.0,0.00534569]
[1743700733936,0.244459,81813.0,81812.0,0.00534569]
[1743700734852,0.256681,81813.0,81812.0,0.00534569]
[1743700735049,0.256685,81812.0,81811.0,0.00413798]
[1743700740949,0.596685,81812.0,81811.0,0.00413798]
[1743700744017,0.34,81812.0,81811.0,0.00413798]
[1743700744231,0.34,81812.0,81811.0,0.24860298]
[1743700744439,0.012221,81823.0,81814.0,0.012222]
[1743700744637,0.244457,81814.0,81811.0,0.00956077]
[1743700744853,0.24445,81816.0,81812.0,0.24446]
[1743700745085,0.244454,81815.0,81812.0,0.01759335]
[1743700745534,0.012221,81824.0,81818.0,0.256665]
[1743700745734,0.244444,81819.0,81815.0,0.256675]
[1743700745948,0.244439,81820.0,81819.0,0.00540809]
[1743700746163,0.244439,81820.0,81817.0,0.244445]
[1743700746360,0.244439,81820.0,81819.0,0.00540809]
[1743700746589,0.244439,81820.0,81817.0,0.244445]
[1743700746793,0.244439,81820.0,81819.0,0.00540809]
[1743700747005,0.244439,81820.0,81818.0,0.00535833]
[1743700747213,0.256652,81823.0,81818.0,0.244444]
[1743700747423,0.244433,81822.0,81819.0,0.00535833]
[1743700747662,0.012221,81822.0,81819.0,0.00535833]
[1743700747857,0.244436,81821.0,81819.0,0.00535833]
[1743700748032,0.244439,81820.0,81815.0,0.256673]
[1743700748249,0.244439,81820.0,81816.0,0.244449]
[1743700748421,0.244439,81820.0,81817.0,0.244446]
[1743700748622,0.244442,81819.0,81816.0,0.244449]
[1743700749227,0.244442,81819.0,81811.0,0.00413798]
[1743700749228,0.244459,81814.0,81811.0,0.00413798]
[1743700749426,0.256681,81815.0,81811.0,0.24860198]
[1743700749655,0.244459,81813.0,81811.0,0.00413798]
[1743700749879,0.244447,81817.0,81811.0,0.00413798]
[1743700750059,0.244447,81817.0,81814.0,0.244454]
[1743700750271,0.244441,81820.0,81814.0,0.012222]
[1743700750487,0.244442,81819.0,81814.0,0.012222]
[1743700750689,0.244452,81816.0,81813.0,0.244454]
[1743700750848,0.244448,81817.0,81813.0,0.244454]
[1743700751050,0.244452,81816.0,81813.0,0.244454]
[1743700751252,0.244452,81816.0,81814.0,0.00535424]
[1743700751670,0.244441,81821.0,81818.0,0.244442]
[1743700751849,0.244444,81819.0,81816.0,0.244447]
[1743700752056,0.012222,81818.0,81812.0,0.012223]
[1743700752256,0.244453,81815.0,81812.0,0.012223]
[1743700752479,0.012221,81820.0,81815.0,0.244453]
[1743700752690,0.256659,81821.0,81817.0,0.244446]
[1743700752921,0.256659,81821.0,81818.0,0.244444]
[1743700753823,0.244438,81821.0,81819.0,0.244441]
[1743700754027,0.244438,81821.0,81818.0,0.244444]
[1743700754562,0.256659,81823.0,81819.0,0.244441]
[1743700754762,0.244447,81819.0,81816.0,0.24445]
[1743700755543,0.244441,81820.0,81817.0,0.244445]
[1743700755764,0.244436,81821.0,81818.0,0.244444]
[1743700755937,0.244429,81825.0,81819.0,0.244441]
[1743700756143,0.244434,81822.0,81819.0,0.244441]
[1743700756592,0.244434,81822.0,81818.0,0.244439]
[1743700756593,0.244438,81821.0,81818.0,0.244439]
[1743700756934,0.24445,81817.0,81814.0,0.244451]
[1743700757140,0.012222,81818.0,81814.0,0.244451]
[1743700757384,0.256667,81818.0,81814.0,0.244451]
[1743700757583,0.012222,81818.0,81814.0,0.244451]
[1743700757789,0.24445,81817.0,81815.0,0.244453]
[1743700758014,0.24445,81817.0,81815.0,0.00520514]
[1743700758218,0.24445,81817.0,81815.0,0.24965814]
[1743700758624,0.256672,81816.0,81815.0,0.00520514]
[1743700758843,0.256672,81816.0,81812.0,0.244462]
[1743700759036,0.24445,81816.0,81812.0,0.244462]
[1743700759440,0.24445,81817.0,81814.0,0.244456]
[1743700759791,0.012221,81824.0,81815.0,0.244452]
[1743700759993,0.256651,81823.0,81819.0,0.244441]
[1743700760192,0.012221,81824.0,81820.0,0.00522481]
[1743700760402,0.34,81825.0,81820.0,0.012221]
[1743700760845,0.34,81825.0,81824.0,0.256648]
[1743700761047,0.244413,81829.0,81822.0,0.244432]
[1743700761249,0.244409,81830.0,81821.0,0.01744581]
[1743700761250,0.34,81830.0,81828.0,0.244414]
[1743700761448,0.01222,81829.0,81824.0,0.012221]
[1743700761648,0.244418,81827.0,81822.0,0.244433]
[1743700761856,0.244418,81827.0,81825.0,0.00522481]
[1743700762050,0.244421,81826.0,81825.0,0.00522481]
[1743700762271,0.244421,81826.0,81821.0,0.244433]
[1743700762600,0.244422,81826.0,81821.0,0.244433]
[1743700762827,0.244418,81827.0,81822.0,0.24965581]
[1743700763154,0.244418,81827.0,81823.0,0.24443]
[1743700763357,0.256636,81828.0,81822.0,0.00522481]
[1743700763558,0.24443,81823.0,81822.0,0.00522481]
[1743700763763,0.256651,81823.0,81822.0,0.00522481]
[1743700764028,0.244449,81817.0,81812.0,0.244462]
[1743700764266,0.244445,81818.0,81814.0,0.244456]
[1743700764444,0.25666,81820.0,81815.0,0.244453]
[1743700764674,0.244439,81820.0,81814.0,0.256676]
[1743700764875,0.244439,81820.0,81816.0,0.00519553]
[1743700764995,0.244439,81820.0,81815.0,0.244451]
[1743700765196,0.244439,81820.0,81816.0,0.24964453]
[1743700765399,0.244444,81819.0,81816.0,0.00519553]
[1743700765618,0.244445,81818.0,81816.0,0.00519553]
[1743700765819,0.244444,81819.0,81815.0,0.244453]
[1743700766150,0.244444,81819.0,81816.0,0.00519553]